Cogmind - Beta 14 @@@ ROGUE MODE // 2024.10.01 @ 12:31:33 Player: Ivanna Dostya Result: Destroyed by Striker with Compact Linear Accelerator Performance ------------- Evolutions (7) 3500 Regions Visited (14) 2800 Robots Destroyed (164) 820 Value Destroyed (6430) 6430 Prototype IDs (34) 680 Alien Tech Used (0) 0 Bonus (4003) 4003 TOTAL SCORE: 18233 Bonus ------- Triggered Max Security 1000 High Alert Combat Kills 535 Follower Combat Kills 233 Aligned with FarCom 300 Acquired SGEMP 2000 Friendly Fire -65 Cogmind --------- Core Integrity 0/1300 Matter 152/300 Energy 88/100 System Corruption 0% Temperature Cool (9) Movement Flying (110) Ox1 Location -3/Testing Parts ------- > --- POWER (2) -------- (None) > --- PROPULSION (8) --- Biometal Leg Improved Diametric Drive > --- UTILITY (7) ------ Experimental Heat Sink > --- WEAPON (4) ------- Fusion Bomb Launcher > --- INVENTORY (5) ---- Improved Diametric Drive Experimental Thermal Shield Improved Thermal Defense Suite SGEMP Prototype Peak State ------------ > --- POWER ------------ Light Antimatter Reactor Particle Reactor > --- PROPULSION ------- Flexi-carbon Leg Flexi-carbon Leg Flexi-carbon Leg Myomer Leg Myomer Leg Myomer Leg Myomer Leg Myomer Leg > --- UTILITY ---------- Advanced Cooling System Huge Storage Unit Advanced Target Analyzer Core Analyzer Improved Heavy Armor Plating Advanced Dynamic Insulation System > --- WEAPON ----------- Coil Gun XL Autogun Subcomponent Railgun Railgun > --- INVENTORY -------- Light Antimatter Reactor Particle Reactor Particle Reactor Light Particle Reactor Medium Treads Flexi-carbon Leg Flexi-carbon Leg Myomer Leg Myomer Leg Advanced Heat Sink Advanced Heat Sink Advanced Heat Sink High-capacity Matter Pod Recoil Stabilizer Transmission Jammer Reaction Control System Improved Phase Shifter Antimissile System Component Analysis Suite Quantum Rifle Long-range Missile Launcher Power Sword [Rating: 138] Favorites ----------- Power Antimatter Reactor Engine Ion Engine Power Core Light Nuclear Core Reactor Antimatter Reactor Propulsion Carbon-fiber Leg Treads Medium Treads Leg Carbon-fiber Leg Hover Unit Antigrav Array Flight Unit Improved Diametric Drive Utility High-capacity Storage Unit Device Improved Cooling System Storage High-capacity Storage Unit Processor Armor Integrity Analyzer Hackware Hacking Suite Protection Improved Light Armor Plating Weapon XL Autogun Subcomponent Energy Gun Particle Gun Ballistic Gun XL Autogun Subcomponent Ballistic Cannon Battle Cannon Launcher Grenade Launcher Special Weapon Mining Laser Slashing Weapon Power Sword Build | -11 -10 -10 -10 -9 -8 -7 -7 -7 -6 -5 -4 -4 -3 -3 ------- Run | Yrd Mat Min Exi Min Mat Fac Was Fac Fac Fac Fac Ext Res Tes Slots Evolved 14 | . . . . . 4 2 . . 2 2 2 . 2 . Power 1 | . . . . . . . . . . 1 . . . . Propulsion 6 | . . . . . 2 . . . 2 . 1 . 1 . Utility 5 | . . . . . . 2 . . . 1 1 . 1 . Weapon 2 | . . . . . 2 . . . . . . . . . Parts Attached 200 | 2 17 4 . 9 17 2 4 8 18 18 12 33 47 9 Power 22 | . 2 . . . 3 . 1 1 1 1 2 3 8 . Engine 3 | . 2 . . . 1 . . . . . . . . . Core 2 | . . . . . 2 . . . . . . . . . Reactor 17 | . . . . . . . 1 1 1 1 2 3 8 . Propulsion 77 | . 7 1 . 2 8 . 1 3 8 8 5 18 13 3 Treads 1 | . . . . . . . . . . . . . 1 . Leg 72 | . 7 1 . 2 8 . 1 3 8 8 5 18 10 1 Wheel . | . . . . . . . . . . . . . . . Hover 3 | . . . . . . . . . . . . . 2 1 Flight 1 | . . . . . . . . . . . . . . 1 Utility 64 | 1 2 1 . 3 5 2 2 4 3 9 5 8 16 3 Device 38 | 1 1 1 . 3 2 1 2 1 1 6 3 6 7 3 Storage 5 | . 1 . . . . . . 1 . . . . 3 . Processor 7 | . . . . . 2 . . . . 1 2 1 1 . Hackware 3 | . . . . . . . . . 2 . . . 1 . Protection 11 | . . . . . 1 1 . 2 . 2 . 1 4 . Artifact . | . . . . . . . . . . . . . . . Weapon 37 | 1 6 2 . 4 1 . . . 6 . . 4 10 3 Energy Gun 8 | . 4 1 . 1 . . . . . . . 1 1 . Energy Cannon . | . . . . . . . . . . . . . . . Ballistic Gun 16 | 1 2 . . . 1 . . . 6 . . 2 4 . Ballistic Cannon 2 | . . 1 . . . . . . . . . . . 1 Launcher 7 | . . . . 2 . . . . . . . . 3 2 Special Weapon 1 | . . . . 1 . . . . . . . . . . Impact Weapon . | . . . . . . . . . . . . . . . Slashing Weapon 3 | . . . . . . . . . . . . 1 2 . Piercing Weapon . | . . . . . . . . . . . . . . . Special Melee Weapon . | . . . . . . . . . . . . . . . Unidentified Prototypes 11 | . . 1 . . . . . . 2 . 1 . 2 5 Corrupted Parts 3 | . . 1 . 1 1 . . . . . . . . . System Corruption 14 | . . 8 . 3 3 . . . . . . . . . Parts Lost 33 | . 3 1 . . . . . . . 3 . 3 21 2 Power 3 | . . . . . . . . . . . . . 3 . Propulsion 10 | . . . . . . . . . . 1 . . 7 2 Utility 6 | . . . . . . . . . . 2 . 1 3 . Weapon 14 | . 3 1 . . . . . . . . . 2 8 . Highest Loss Streak 13 | . 2 1 . . . . . . . 1 . 1 13 2 To Critical Strikes . | . . . . . . . . . . . . . . . Average Slot Usage (%) 89 | . 98 100 100 100 71 76 76 75 87 99 99 96 83 18 Engine 4 | . 14 14 14 14 3 . . . . . . . . . Reactor 4 | . . . . . . . 4 7 5 11 10 10 7 . Leg 31 | . 28 28 28 28 35 30 30 29 39 35 36 36 33 1 Device 8 | . 12 14 14 14 8 7 15 9 1 5 9 5 3 4 Storage 8 | . 14 14 14 14 9 7 7 7 6 5 5 5 3 . Processor 5 | . . . . . . 7 7 7 6 8 10 13 11 . Hackware 1 | . . . . . . . . . 10 3 . . . . Protection 2 | . . . . . . 7 . 4 . 3 5 3 3 . Energy Gun 3 | . 9 14 14 7 . . . . . . . 1 . . Ballistic Gun 12 | . 17 9 . . 9 7 7 7 14 23 21 18 15 . Ballistic Cannon 2 | . . 4 14 14 . . . . . . . . . . Peak Build Rating 138 | 9 11 18 21 23 57 63 71 74 84 88 111 119 138 57 Average Rating 63 | 6 9 16 19 20 54 62 68 71 75 85 102 114 117 39 On Entrance 50 | 6 9 11 18 21 19 57 63 71 73 72 88 110 116 16 Naked Turns 83 | . . . . . . . . . . . . . 83 . Heaviest Build 156 | 14 30 32 32 35 48 44 57 77 76 95 95 98 156 12 Greatest Support 195 | 20 20 20 20 25 55 55 60 65 103 113 150 175 195 7 Greatest Overweight (x) 1 | . 1 1 1 1 1 . . 1 . . . . . 1 Average Overweight (x) . | . . 1 1 1 . . . . . . . . . . Largest Inventory Capacity 25 | 8 15 15 15 15 15 15 15 20 20 20 20 20 25 5 Average Capacity 17 | 8 13 15 15 15 15 15 15 19 20 20 20 20 22 5 Most Carried 25 | 8 15 15 15 15 15 14 15 20 20 20 20 20 25 5 Average Carried 16 | 6 11 14 14 14 14 13 14 18 19 19 19 19 20 3 Final Capacity 20 | 8 15 15 15 15 15 15 15 20 20 20 20 20 5 5 Final Carried 20 | 8 15 15 14 15 15 13 15 20 20 20 20 20 . 5 Class Distribution -------------------- 33% | Scavenger-Gunner 27% | Mutant 26% | Scavenger-Skirmisher 10% | Skirmisher Dominant Class ---------------- Mutant | -10/Materials Mutant | -10/Mines Mutant | -10/Exiles Skirmisher | -9/Mines Skirmisher | -8/Materials Scavenger-Skirmisher | -7/Factory Scavenger-Gunner | -7/Waste Scavenger-Skirmisher | -7/Factory Scavenger-Skirmisher | -6/Factory Scavenger-Gunner | -5/Factory Scavenger-Gunner | -4/Factory Scavenger-Gunner | -4/Extension Scavenger-Gunner | -3/Research Sprinter | -3/Testing Resources | -11 -10 -10 -10 -9 -8 -7 -7 -7 -6 -5 -4 -4 -3 -3 ----------- Run | Yrd Mat Min Exi Min Mat Fac Was Fac Fac Fac Fac Ext Res Tes Matter Collected 7369 | 234 289 74 . 232 1095 . 564 770 729 866 495 804 1215 2 Remotely . | . . . . . . . . . . . . . . . Salvage Created 10728 | 122 547 81 . 33 820 . 1719 644 1047 988 415 1522 2790 . Parts 451 | 6 31 1 . . 49 . 26 37 49 49 20 64 119 . Haulers Intercepted 5 | . 1 . . . 1 . . . . 1 . . 2 . Recyclers Shooed 21 | 1 3 1 . . 2 . . . 3 2 . . 9 . Parts Field Recycled . | . . . . . . . . . . . . . . . Retrieved Matter . | . . . . . . . . . . . . . . . Parts Self-Destructed . | . . . . . . . . . . . . . . . Prevented . | . . . . . . . . . . . . . . . Kills | -11 -10 -10 -10 -9 -8 -7 -7 -7 -6 -5 -4 -4 -3 -3 ------- Run | Yrd Mat Min Exi Min Mat Fac Was Fac Fac Fac Fac Ext Res Tes Combat Hostiles Destroyed 119 | . 12 2 . 6 14 . 6 13 12 13 5 13 23 . Guns 106 | . 12 2 . . 14 . 6 13 12 13 5 13 16 . Cannons 1 | . . . . 1 . . . . . . . . . . AOE 12 | . . . . 5 . . . . . . . . 7 . Classes Destroyed 19 | 2 4 . . 1 5 . 1 1 . . 1 1 3 . Worker 5 | . . . . . 1 . . 1 1 1 . . 1 . Builder 10 | . 1 . . . 1 . . 1 1 1 . . 5 . Tunneler 3 | 2 . . . . . . . . . . . . 1 . Hauler 5 | . 1 . . . 1 . . . . 1 . . 2 . Recycler 18 | 1 1 . . . 2 . . . 2 . . 5 7 . Operator 3 | . . . . . 1 . . . . . 1 1 . . Watcher 7 | . . . . . 1 . . . 2 1 1 . 2 . Swarmer 21 | . 3 . . . 5 . . 4 3 . 1 5 . . Grunt 46 | . 9 2 . . 4 . . 7 3 6 1 1 13 . Brawler 1 | . . . . . . . . . . . 1 . . . Duelist 1 | . . . . . . . . . . . . . 1 . Sentry 15 | . . . . . 2 . . 1 5 2 . 2 3 . Specialist 2 | . . . . . . . . . . . . . 2 . Hunter 13 | . . . . . 3 . . . 1 3 2 4 . . Programmer 6 | . . . . . . . . 1 . 2 . . 3 . Heavy 1 | . . . . . . . . . . . . . 1 . Behemoth 1 | . . . . . . . . . . . . 1 . . Compactor 6 | . . . . . . . 6 . . . . . . . Assembled 6 | . . . . 6 . . . . . . . . . . Best Kill Streak 12 | 2 2 1 . 4 6 . 5 5 6 4 3 7 12 . Combat Bots Only 8 | . 2 1 . 4 3 . 5 5 5 4 3 5 8 . Max Kills in Single Turn 4 | 1 1 1 . 2 1 . 1 1 2 2 2 2 4 . Gunslinging 1 | . . . . . . . . . . . 1 . 1 . Exploded 2 | . . . . 2 . . . . . . . . 2 . Melee . | . . . . . . . . . . . . . . . Uniques/NPCs Destroyed . | . . . . . . . . . . . . . . . Combat | -11 -10 -10 -10 -9 -8 -7 -7 -7 -6 -5 -4 -4 -3 -3 -------- Run | Yrd Mat Min Exi Min Mat Fac Was Fac Fac Fac Fac Ext Res Tes Hostile Shots Fired 966 | . 105 6 . 4 32 . . 32 67 62 49 95 452 62 Missed 365 | . 26 3 . 1 11 . . 6 35 15 10 32 195 31 Damage Taken 10264 | . 849 37 . 146 316 . . 345 488 921 532 1432 4476 722 Core 2016 | . 183 14 . 42 . . . 71 89 46 90 150 992 339 Absorbed by Shields . | . . . . . . . . . . . . . . . Ignored by Resistances 164 | . . . . . . . . . . . . . 164 . Regen/Repaired (Parts) 310 | . 63 . . . . . . 72 175 . . . . . Core Remaining (%) 79 | 100 . . . 4 100 . . 89 89 95 . 79 . . Volleys Fired 443 | 7 71 6 . 15 47 . 31 43 28 56 18 53 67 1 Largest 4 | 2 2 2 . 2 1 . 1 1 4 4 4 4 4 1 Hottest 202 | 40 95 85 . 104 60 . 60 60 80 80 80 154 202 52 Shots Fired 1045 | 14 133 11 . 15 47 . 30 47 52 211 72 170 242 1 Gun 1018 | 14 133 11 . . 47 . 30 47 52 211 72 170 231 . Cannon 5 | . . . . 5 . . . . . . . . . . Launcher 18 | . . . . 6 . . . . . . . . 11 1 Special 4 | . . . . 4 . . . . . . . . . . Kinetic 955 | 14 89 6 . 5 47 . 30 47 52 211 72 159 223 . Thermal 54 | . 26 5 . 4 . . . . . . . 11 8 . Explosive 18 | . . . . 6 . . . . . . . . 11 1 Electromagnetic 18 | . 18 . . . . . . . . . . . . . Robot Hit Streak 24 | 3 9 6 . 4 14 . 12 16 10 16 6 15 24 . Robot Miss Streak 7 | 2 3 2 . 4 7 . 6 4 5 4 3 7 7 1 Penetration Max 2 | . . . . . . . . . . . . 1 2 . Secondary Targets 9 | . . . . . . . . . 1 1 2 2 3 . Max Gunslinging Chain 1 | . . . . . . . . . 1 1 1 1 1 . Shots Hit Robots 677 | 8 90 8 . 6 41 . 26 35 38 123 42 107 153 . Core Hits 382 | 4 29 6 . 8 29 . 20 24 37 48 19 46 112 . Critical Kills . | . . . . . . . . . . . . . . . Critical Parts Destroyed 3 | . 1 . . . . . . . . . . . 2 . Critical Strikes 7 | . 2 2 . . . . . . . . . 1 2 . Burn 4 | . 1 2 . . . . . . . . . 1 . . Destroy 3 | . 1 . . . . . . . . . . . 2 . Melee Attacks 5 | . . . . . . . . . . . . 2 3 . Impact . | . . . . . . . . . . . . . . . Slashing 5 | . . . . . . . . . . . . 2 3 . Piercing . | . . . . . . . . . . . . . . . Sneak Attacks 2 | . . . . . . . . . . . . . 2 . Combat Hostiles . | . . . . . . . . . . . . . . . Follow-up Attacks . | . . . . . . . . . . . . . . . Damage Inflicted 22176 | 98 1041 126 . 287 2453 . 2377 1884 1617 2498 893 2289 6613 . Guns 18885 | 98 1011 103 . . 2404 . 2377 1884 1617 2469 893 2210 3819 . Cannons 66 | . . . . 66 . . . . . . . . . . Explosions 2835 | . . . . 219 . . . . . . . . 2616 . Melee 223 | . . . . . . . . . . . . 69 154 . Ramming 167 | . 30 23 . 2 49 . . . . 29 . 10 24 . Kinetic 18094 | 98 530 37 . 66 2404 . 2377 1884 1617 2469 893 2045 3674 . Thermal 652 | . 276 66 . . . . . . . . . 165 145 . Explosive 2835 | . . . . 219 . . . . . . . . 2616 . Electromagnetic 205 | . 205 . . . . . . . . . . . . . Impact . | . . . . . . . . . . . . . . . Slashing 223 | . . . . . . . . . . . . 69 154 . Piercing . | . . . . . . . . . . . . . . . Highest Corruption 16 | . . 8 8 11 3 1 16 16 1 4 . . . . Average Corruption 9 | . . 8 8 8 3 1 9 16 1 2 . . . . Corruption Purged . | . . . . . . . . . . . . . . . Corruption Blocked . | . . . . . . . . . . . . . . . Effects 156 | . . 28 14 23 . . 4 76 2 9 . . . . Message Errors 41 | . . 9 3 4 . . 2 19 . 4 . . . . Matter Fused 36 | . . 6 3 6 . . . 18 2 1 . . . . Heat Flow Errors 17 | . . 6 1 5 . . . 5 . . . . . . Energy Discharges 22 | . . 2 3 4 . . 1 12 . . . . . . Parts Rejected 1 | . . . . . . . . 1 . . . . . . Data Loss (minor) 15 | . . 4 2 2 . . . 7 . . . . . . Data Loss (major) 7 | . . 1 1 . . . . 3 . 2 . . . . Misfires 6 | . . . . . . . . 6 . . . . . . Alerts 4 | . . . 1 1 . . . 1 . 1 . . . . Misdirections 2 | . . . . . . . . 2 . . . . . . Weapon Failures 5 | . . . . 1 . . 1 2 . 1 . . . . Overload Shots . | . . . . . . . . . . . . . . . Overflow Damage 247 | . . . . . 11 . . . . . . . 236 . Projectiles . | . . . . . . . . . . . . . . . Explosions 132 | . . . . . . . . . . . . . 132 . Melee 115 | . . . . . 11 . . . . . . . 104 . Knockbacks 3 | . . . . 2 . . . . . 1 . . . . Impact 1 | . . . . . . . . . . 1 . . . . Kinetic 2 | . . . . 2 . . . . . . . . . . Secondary . | . . . . . . . . . . . . . . . Self-Inflicted Damage 180 | . . . . 69 . . . . . . . . 111 . Shots 4 | . . . . 2 . . . . . . . . 2 . Rammed 5 | . . . . . . . . . . . . . 5 . Targets Rammed 32 | . 10 6 . 1 6 . . . . 2 . 2 5 . Kicked 27 | . 10 6 . 1 6 . . . . 2 . 2 . . Crushed . | . . . . . . . . . . . . . . . Highest Temperature 493 | . 339 230 267 253 466 . 126 207 197 460 181 493 452 . Average Temperature 115 | . 77 84 134 79 126 . 45 45 51 130 65 156 143 . Received Heat Transfer 1771 | . 327 21 . . 81 . . 156 63 153 21 495 394 60 Effects 38 | . 2 . . . 2 . . . . 3 . 8 23 . Shutdowns 8 | . . . . . . . . . . 1 . 1 6 . Energy Bleed 8 | . . . . . . . . . . . . 3 5 . Interference 12 | . 1 . . . . . . . . 2 . 3 6 . Matter Decay 1 | . . . . . . . . . . . . . 1 . Short Circuit 7 | . 1 . . . 1 . . . . . . . 5 . Damage (minor) 2 | . . . . . 1 . . . . . . 1 . . Siege Activations . | . . . . . . . . . . . . . . . Robots Corrupted . | . . . . . . . . . . . . . . . Combat Hostiles . | . . . . . . . . . . . . . . . Parts Fried . | . . . . . . . . . . . . . . . Impact Corruptions 1 | . . . . . 1 . . . . . . . . . Robots Melted . | . . . . . . . . . . . . . . . Combat Hostiles . | . . . . . . . . . . . . . . . Parts Melted 7 | . 3 3 . . . . . . . . . 1 . . Heat Transferred 1591 | . 777 296 . . . . . . . . . 333 185 . Parts Sabotaged . | . . . . . . . . . . . . . . . Parts Stolen . | . . . . . . . . . . . . . . . Parts Stripped . | . . . . . . . . . . . . . . . Power Chain Reactions . | . . . . . . . . . . . . . . . Alert | -11 -10 -10 -10 -9 -8 -7 -7 -7 -6 -5 -4 -4 -3 -3 ------- Run | Yrd Mat Min Exi Min Mat Fac Was Fac Fac Fac Fac Ext Res Tes Peak Influence 1695 | 15 190 100 . 58 452 219 79 297 333 276 183 421 1151 1695 Initial 623 | . 9 45 . . 22 205 76 42 39 100 65 40 220 623 Average 193 | 6 81 41 . 16 242 209 65 164 189 149 80 243 461 1595 Maximum Alert Level 5 | . . . . . 2 1 . 1 1 1 . 2 4 5 Low Security (%) 64 | 100 100 100 . 100 40 . 100 64 45 71 100 29 15 . Level 1 26 | . . . . . 49 100 . 35 54 28 . 60 33 . Level 2 5 | . . . . . 9 . . . . . . 9 33 . Level 3 1 | . . . . . . . . . . . . . 14 . Level 4 . | . . . . . . . . . . . . . 2 . Level 5 . | . . . . . . . . . . . . . . . High Security . | . . . . . . . . . . . . . . . Max Security 1 | . . . . . . . . . . . . . . 99 Squads Dispatched 49 | . 2 . . . 4 1 . 4 2 7 2 5 16 6 Investigation 25 | . 2 . . . 4 1 . 3 2 5 1 2 5 . Extermination 4 | . . . . . . . . 1 . 2 . . 1 . Reinforcement 9 | . . . . . . . . . . . 1 1 7 . Assault 9 | . . . . . . . . . . . . 2 1 6 Garrison 2 | . . . . . . . . . . . . . 2 . Intercept . | . . . . . . . . . . . . . . . Searches Triggered . | . . . . . . . . . . . . . . . Construction Impeded 1 | . . . . . . . . . . . . . 1 . Haulers Reinforced 1 | . . . . . . . . . . . . . 1 . Active Scanning Responses . | . . . . . . . . . . . . . . . Cargo Convoy Interrupts 1 | . . . . . . . . . . . . . 1 . Stealth | -11 -10 -10 -10 -9 -8 -7 -7 -7 -6 -5 -4 -4 -3 -3 --------- Run | Yrd Mat Min Exi Min Mat Fac Was Fac Fac Fac Fac Ext Res Tes Distress Signals 8 | . . . . . 2 . . 1 1 . . 3 1 . Communications Jammed . | . . . . . . . . . . . . . . . Distress Signals . | . . . . . . . . . . . . . . . Times Spotted 241 | . 25 5 . 9 23 . 6 16 14 17 7 21 62 36 Peak Tracking Total 25 | . 6 3 . 3 4 . 2 5 4 3 3 5 17 25 Tactical Retreats 19 | . 2 . . . 2 . . 2 1 1 . 2 7 2 Traps | -11 -10 -10 -10 -9 -8 -7 -7 -7 -6 -5 -4 -4 -3 -3 ------- Run | Yrd Mat Min Exi Min Mat Fac Was Fac Fac Fac Fac Ext Res Tes Traps Triggered 9 | . 1 . . . 1 1 . . 1 3 1 1 . . Indirectly . | . . . . . . . . . . . . . . . Trap Hack Attempts . | . . . . . . . . . . . . . . . Triggered . | . . . . . . . . . . . . . . . Disarmed . | . . . . . . . . . . . . . . . Reprogrammed . | . . . . . . . . . . . . . . . Reused . | . . . . . . . . . . . . . . . Traps Extracted . | . . . . . . . . . . . . . . . Installed . | . . . . . . . . . . . . . . . Triggered 2 | . . . . . . . . . . . . . 2 . Machines | -11 -10 -10 -10 -9 -8 -7 -7 -7 -6 -5 -4 -4 -3 -3 ---------- Run | Yrd Mat Min Exi Min Mat Fac Was Fac Fac Fac Fac Ext Res Tes Machines Disabled 11 | . . . . 2 1 . . 2 1 . 1 2 2 . Max in Single Turn 1 | . . . . . 1 . . 1 1 . 1 1 1 . Garrison Access 3 | . . . . . . . . 1 1 . . . 1 . Energy Cycler 1 | . . . . . . . . . . . . 1 . . Machines Repaired . | . . . . . . . . . . . . . . . Machines Dismantled . | . . . . . . . . . . . . . . . Machines Sabotaged . | . . . . . . . . . . . . . . . Overloaded Fab Kills . | . . . . . . . . . . . . . . . Hacking | -11 -10 -10 -10 -9 -8 -7 -7 -7 -6 -5 -4 -4 -3 -3 --------- Run | Yrd Mat Min Exi Min Mat Fac Was Fac Fac Fac Fac Ext Res Tes Machines Accessed 44 | . 4 . 1 1 5 1 . 5 6 4 3 8 6 . Terminals 29 | . 3 . . . 4 1 . 2 2 3 2 8 4 . Fabricators 3 | . . . . . . . . 1 . 1 1 . . . Repair Stations 6 | . 1 . . . . . . 1 3 . . . 1 . Recycling Units 1 | . . . . . 1 . . . . . . . . . Scanalyzers . | . . . . . . . . . . . . . . . Garrison Access 3 | . . . . . . . . 1 1 . . . 1 . Total Hacks 118 | . 15 . 1 1 23 3 . 13 14 12 6 15 15 . Successful 66 | . 11 . 1 1 12 1 . 6 11 5 5 11 2 . Failed 52 | . 4 . . . 11 2 . 7 3 7 1 4 13 . Catastrophic 13 | . 1 . . . 2 2 . 2 1 1 . 2 2 . Database Lockouts . | . . . . . . . . . . . . . . . Manual 63 | . 5 . 1 . 14 1 . 5 7 11 3 7 9 . Terminals 78 | . 7 . . . 19 3 . 6 5 10 4 15 9 . Fabricators 7 | . . . . . . . . 3 . 2 2 . . . Repair Stations 21 | . 8 . . . . . . 3 7 . . . 3 . Recycling Units 4 | . . . . . 4 . . . . . . . . . Scanalyzers . | . . . . . . . . . . . . . . . Garrison Access 6 | . . . . . . . . 1 2 . . . 3 . Terminal Hacks 21 | . 2 . 1 1 4 . . . 1 2 2 8 . . Record 2 | . . . . . . . . . . 1 1 . . . Robot Analysis 2 | . . . . . . . . . . . . 2 . . Open Door 6 | . . . . 1 . . . . . . 1 4 . . Level Access Points 3 | . . . . . 1 . . . 1 1 . . . . Branch Access Points 2 | . 1 . . . . . . . . . . 1 . . Terminal Index 1 | . 1 . . . . . . . . . . . . . Alert Level 1 | . . . . . . . . . . . . 1 . . Transport Status 1 | . . . . . 1 . . . . . . . . . Hauler Manifests 1 | . . . . . 1 . . . . . . . . . Registered Components 1 | . . . . . 1 . . . . . . . . . Derelict Proto ID Bank 1 | . . . 1 . . . . . . . . . . . Fabricator Hacks 2 | . . . . . . . . 1 . . 1 . . . Network Status 1 | . . . . . . . . 1 . . . . . . Build 1 | . . . . . . . . . . . 1 . . . Repair Station Hacks 16 | . 7 . . . . . . 2 6 . . . 1 . Scan Component 8 | . 3 . . . . . . 1 3 . . . 1 . Repair 7 | . 3 . . . . . . 1 3 . . . . . Refit 1 | . 1 . . . . . . . . . . . . . Recycling Unit Hacks 1 | . . . . . 1 . . . . . . . . . Retrieve Components 1 | . . . . . 1 . . . . . . . . . Scanalyzer . | . . . . . . . . . . . . . . . Garrison Access Hacks 2 | . . . . . . . . 1 1 . . . . . Seal Access 2 | . . . . . . . . 1 1 . . . . . Unauthorized Hacks 24 | . 2 . . . 7 1 . 2 3 3 2 3 1 . Terminals 18 | . 2 . . . 5 1 . 2 1 3 1 3 . . Track 1 | . . . . . 1 . . . . . . . . . Botnet 17 | . 2 . . . 4 1 . 2 1 3 1 3 . . Fabricators 1 | . . . . . . . . . . . 1 . . . Report 1 | . . . . . . . . . . . 1 . . . Repair Stations 1 | . . . . . . . . . 1 . . . . . Mechanics 1 | . . . . . . . . . 1 . . . . . Recycling Units 2 | . . . . . 2 . . . . . . . . . Recyclers 1 | . . . . . 1 . . . . . . . . . Tunnel 1 | . . . . . 1 . . . . . . . . . Scanalyzers . | . . . . . . . . . . . . . . . Garrison Access 2 | . . . . . . . . . 1 . . . 1 . Watchers 1 | . . . . . . . . . 1 . . . . . Jam 1 | . . . . . . . . . . . . . 1 . Data Cores Recovered 1 | . . . . . 1 . . . . . . . . . Used . | . . . . . . . . . . . . . . . Hacking Detections 35 | . 4 . . . 5 1 . 4 4 4 1 6 6 . Full Trace Events 20 | . . . . . 3 1 . 3 2 4 1 2 4 . Feedback Events 1 | . . . . . . 1 . . . . . . . . Corruption 1 | . . . . . . 1 . . . . . . . . Feedback Blocked . | . . . . . . . . . . . . . . . Robot Schematics Acquired . | . . . . . . . . . . . . . . . Robots Built . | . . . . . . . . . . . . . . . Authchips . | . . . . . . . . . . . . . . . Time . | . . . . . . . . . . . . . . . Total Robot Build Rating . | . . . . . . . . . . . . . . . Part Schematics Acquired . | . . . . . . . . . . . . . . . Parts Built 2 | . . . . . . . . . . . 2 . . . Authchips . | . . . . . . . . . . . . . . . Time 117 | . . . . . . . . . . . 117 . . . Total Part Build Rating 14 | . . . . . . . . . . . 14 . . . Parts Repaired 7 | . 3 . . . . . . 1 3 . . . . . Time 296 | . 108 . . . . . . 38 150 . . . . . Parts Recycled . | . . . . . . . . . . . . . . . Recycled Matter . | . . . . . . . . . . . . . . . Retrieved Matter . | . . . . . . . . . . . . . . . Retrieved Components 9 | . . . . . 9 . . . . . . . . . Parts Scanalyzed . | . . . . . . . . . . . . . . . Part Schematics Acquired . | . . . . . . . . . . . . . . . Parts Damaged . | . . . . . . . . . . . . . . . Bothacking | -11 -10 -10 -10 -9 -8 -7 -7 -7 -6 -5 -4 -4 -3 -3 ------------ Run | Yrd Mat Min Exi Min Mat Fac Was Fac Fac Fac Fac Ext Res Tes Used RIF Installer . | . . . . . . . . . . . . . . . Robots Hacked . | . . . . . . . . . . . . . . . Non-combat . | . . . . . . . . . . . . . . . Combat . | . . . . . . . . . . . . . . . Robot Hacks Applied . | . . . . . . . . . . . . . . . Relay Couplers Released . | . . . . . . . . . . . . . . . Fabnet Peak Effective % . | . . . . . . . . . . . . . . . Robots Rewired . | . . . . . . . . . . . . . . . Allies Hacked . | . . . . . . . . . . . . . . . Hacks Repelled . | . . . . . . . . . . . . . . . Allies | -11 -10 -10 -10 -9 -8 -7 -7 -7 -6 -5 -4 -4 -3 -3 -------- Run | Yrd Mat Min Exi Min Mat Fac Was Fac Fac Fac Fac Ext Res Tes Total Allies 10 | . . 4 . . . . 1 . . . . 5 . . Largest Group 4 | . . 4 3 3 . . 1 . . . . 3 . . Highest-Rated Group 113 | . . 71 40 40 . . 31 . . . . 113 . . Highest-Rated Ally 46 | . . 31 16 16 . . 31 . . . . 46 . . Total Orders . | . . . . . . . . . . . . . . . Ally Attacks 69 | . . 7 . 28 . . 13 . . . . 21 . . Total Damage 1040 | . . 80 . 257 . . 210 . . . . 493 . . Kills 10 | . . 3 . 3 . . . . . . . 4 . . Allies Corrupted 1 | . . . . . . . . . . . . 1 . . Allies Melted . | . . . . . . . . . . . . . . . Intel | -11 -10 -10 -10 -9 -8 -7 -7 -7 -6 -5 -4 -4 -3 -3 ------- Run | Yrd Mat Min Exi Min Mat Fac Was Fac Fac Fac Fac Ext Res Tes Robot Analysis Total 2 | . . . . . . . . . . . . 2 . . Derelict Logs Recovered 3 | . . 3 . . . . . . . . . . . . Drone Launches . | . . . . . . . . . . . . . . . Drone Recoveries . | . . . . . . . . . . . . . . . Exploration | -11 -10 -10 -10 -9 -8 -7 -7 -7 -6 -5 -4 -4 -3 -3 ------------- Run | Yrd Mat Min Exi Min Mat Fac Was Fac Fac Fac Fac Ext Res Tes Turns Passed 10530 | 62 1072 1194 393 743 688 68 177 1618 974 842 527 789 1233 150 Spaces Moved 6122 | 30 411 601 206 356 421 56 114 766 585 567 369 453 829 358 Core 171 | . . . . . . . . . . . . . 161 10 Treads . | . . . . . . . . . . . . . . . Legs 5544 | 30 411 601 206 356 421 56 114 766 585 567 369 453 609 . Wheels . | . . . . . . . . . . . . . . . Hover 59 | . . . . . . . . . . . . . 59 . Flight 348 | . . . . . . . . . . . . . . 348 Fastest Speed 30 | 120 120 190 190 190 120 120 120 120 120 120 120 120 50 30 Average Speed 138 | 120 170 190 190 190 125 120 120 189 120 120 120 120 102 32 Slowest Speed 192 | 120 190 190 190 190 190 120 120 192 121 121 120 120 120 100 Overloaded Moves . | . . . . . . . . . . . . . . . Propulsion Burnouts . | . . . . . . . . . . . . . . . Robots Hopped 7 | . . . . . . . . . . . . . . 7 Cave-ins Triggered . | . . . . . . . . . . . . . . . Exploration Rate (%) 35 | 5 58 92 59 70 30 2 73 21 18 13 8 41 22 26 Regions Visited 14 Branch Regions 5 Pre-discovered Areas 5 | . . 3 . 1 1 . . . . . . . . . Known Exits Taken 4 | . 1 . . . 1 . . . 1 1 . . . . Unknown Exits Taken 8 | 1 . 1 1 1 . . . 1 . . 1 1 1 . Scrap Searched 1 | . . 1 . . . . . . . . . . . . Spaces Dug 46 | . . . . 20 12 . . 14 . . . . . . Terrain Destroyed 304 | . . . . 43 85 . 5 43 1 . . 8 119 . Melee . | . . . . . . . . . . . . . . . Projectile 129 | . . . . 4 85 . 5 23 1 . . 8 3 . AOE 175 | . . . . 39 . . . 20 . . . . 116 . Terrain Rammed . | . . . . . . . . . . . . . . . Walls Destroyed . | . . . . . . . . . . . . . . . Machines Disabled . | . . . . . . . . . . . . . . . Actions | -11 -10 -10 -10 -9 -8 -7 -7 -7 -6 -5 -4 -4 -3 -3 --------- Run | Yrd Mat Min Exi Min Mat Fac Was Fac Fac Fac Fac Ext Res Tes Total 7830 | 42 657 639 211 398 587 58 157 930 851 704 447 668 1097 384 Wait 731 | 2 116 15 . 9 59 . 2 97 191 41 35 49 104 11 Move 6097 | 29 410 600 205 355 420 56 113 765 584 566 368 452 829 345 Hop 6 | . . . . . . . . . . . . . . 6 Pick Up 143 | 2 19 4 1 4 17 . 4 9 12 10 4 30 21 6 Fast Attach 41 | 1 1 . . . 4 . . 2 10 . 3 6 7 7 Attach 46 | . 2 1 . . 3 2 . . 2 6 2 7 19 2 Detach 5 | . . . . . . . . . . . . 1 2 2 Swap 113 | 1 14 3 . 9 10 . 4 6 6 12 7 20 21 . Drop 167 | . 14 4 5 5 21 . 3 8 18 11 10 44 20 4 Fire 443 | 7 71 6 . 15 47 . 31 43 28 56 18 53 67 1 Melee 5 | . . . . . . . . . . . . 2 3 . Ram 4 | . . . . . . . . . . . . . 4 . Kick 27 | . 10 6 . 1 6 . . . . 2 . 2 . . Crush . | . . . . . . . . . . . . . . . Escape Stasis . | . . . . . . . . . . . . . . . Rewire 2 | . . . . . . . . . . . . 2 . . Trap . | . . . . . . . . . . . . . . . Miscellaneous . | . . . . . . . . . . . . . . . Route ------- -11/Scrapyard -10/Materials (discovered 4 exits: [*Mat x2] / *Min x2) -10/Mines (discovered 3 exits: [*Mat x2] / *Exi) -10/Exiles -9/Mines -8/Materials (discovered 3 exits: *Fac x3) -7/Factory -7/Waste -7/Factory -6/Factory (discovered 4 exits: *Fac x4) -5/Factory (discovered 4 exits: *Fac x4) -4/Factory -4/Extension (discovered 2 exits: *Res / Cet) -3/Research -3/Testing History --------- Turn | Location | Event 3 | -11/Scrapyard | Discovered new exit (range 2) 63 | -11/Scrapyard | Entered Materials 129 | -10/Materials | Discovered new exit (range 14) 302 | -10/Materials | Build established: Mutant 416 | -10/Materials | Discovered new exit (range 5) 425 | -10/Materials | Identified exit to Mines 756 | -10/Materials | Repaired Corrupted Particle Gun 794 | -10/Materials | Repaired Imp. Terrain Scanner 816 | -10/Materials | Core integrity fell below 50% 869 | -10/Materials | Repaired Ion Engine 1135 | -10/Materials | Entered Mines 1343 | -10/Mines | Found a damaged Exp. Sensor Array with a note attached 1347 | -10/Mines | Found Prototype Device 1348 | -10/Mines | Identified Exp. Sensor Array 1465 | -10/Mines | Discovered new exit (range 9) 1596 | -10/Mines | Assisted by bots powering up and referring to "LRC-V3" 1889 | -10/Mines | A weapon hastily lodged in a ceiling crevice suddenly fell to the ground 1930 | -10/Mines | Discovered new exit (range 14) 1980 | -10/Mines | Received a Mining Laser from a helpful Derelict 2299 | -10/Mines | Found a hidden stash of uninstalled traps 2314 | -10/Mines | Deemed a non-threat by the Exiles lab entrance 2316 | -10/Mines | Discovered new exit (range 5) 2329 | -10/Mines | Entered Exiles 2329 | -10/Exiles | Accompanied by 3 allies 2375 | -10/Exiles | Met 8R-AWN 2409 | -10/Exiles | Met EX-HEX 2459 | -10/Exiles | Met EX-BIN 2483 | -10/Exiles | Aligned with FarCom system 2485 | -10/Exiles | Given EX-Vault access code 2531 | -10/Exiles | Opened EX-Vault 2543 | -10/Exiles | Found XL Autogun Array 2584 | -10/Exiles | Warned to stay clear of 0b10 Research branches 2639 | -10/Exiles | Met EX-DEC 2702 | -10/Exiles | Discovered new exit (range 14) 2722 | -10/Exiles | Left Exiles lab with XL Autogun Array 2722 | -10/Exiles | Entered Mines 2722 | -9/Mines | Accompanied by 3 allies 2737 | -9/Mines | Met a Derelict bent on vengeance 2833 | -9/Mines | Discovered new exit (range 4) 2837 | -9/Mines | YI-UF0 nonchalantly dropped a Grenade Launcher on the ground 2894 | -9/Mines | Assembled infested the area 3023 | -9/Mines | Build established: Skirmisher 3061 | -9/Mines | Learned location of Storage (-9) 3114 | -9/Mines | Core integrity fell below 20% 3228 | -9/Mines | Met a Derelict who couldn't figure out how to use a Trap Extractor 3464 | -9/Mines | System corruption reached 10% 3465 | -9/Mines | Entered Materials 3465 | -8/Materials | Evolved 4 slots: Propulsion x2, Weapon x2 3751 | -8/Materials | Identified exit to Factory 4122 | -8/Materials | Build established: Scavenger-Skirmisher 4153 | -8/Materials | Entered Factory 4153 | -7/Factory | Evolved 2 slots: Utility x2 4221 | -7/Factory | Sucked down chute 4221 | -7/Factory | Entered Waste 4222 | -7/Waste | Met a frightened Derelict 4235 | -7/Waste | Spotted C-40 Crusher 4236 | -7/Waste | EMP discharged 4244 | -7/Waste | Destroyed C-40 Crusher 4249 | -7/Waste | Spotted C-40 Crusher 4260 | -7/Waste | Destroyed C-40 Crusher 4264 | -7/Waste | Spotted C-40 Crusher 4271 | -7/Waste | Destroyed C-40 Crusher 4273 | -7/Waste | Spotted C-40 Crusher 4275 | -7/Waste | Spotted C-40 Crusher 4283 | -7/Waste | Destroyed C-40 Crusher 4289 | -7/Waste | Destroyed C-40 Crusher 4336 | -7/Waste | EMP discharged 4336 | -7/Waste | System corruption reached 10% 4349 | -7/Waste | Spotted C-40 Crusher 4353 | -7/Waste | Destroyed C-40 Crusher 4380 | -7/Waste | Discovered new exit (range 15) 4398 | -7/Waste | Entered Factory 4516 | -7/Factory | Build established: Scavenger-Gunner 5134 | -7/Factory | Repaired Carbon-fiber Leg 5193 | -7/Factory | Build established: Scavenger-Skirmisher 5684 | -7/Factory | Discovered new exit (range 14) 6016 | -7/Factory | Entered another Factory area 6016 | -6/Factory | Evolved 2 slots: Propulsion x2 6267 | -6/Factory | Identified exit to Factory 6668 | -6/Factory | Repaired Antimatter Reactor 6719 | -6/Factory | Repaired Flexi-carbon Leg 6965 | -6/Factory | Repaired Carbon-fiber Leg 6990 | -6/Factory | Entered another Factory area 6990 | -5/Factory | Evolved 2 slots: Power x1, Utility x1 7123 | -5/Factory | Discovered new exit (range 11) 7168 | -5/Factory | Discovered new exit (range 15) 7259 | -5/Factory | Identified exit to Factory 7705 | -5/Factory | Build established: Scavenger-Gunner 7832 | -5/Factory | Entered another Factory area 7832 | -4/Factory | Evolved 2 slots: Propulsion x1, Utility x1 8065 | -4/Factory | Fabricated Adv. Focal Shield (x2) 8355 | -4/Factory | Discovered new exit (range 5) 8359 | -4/Factory | Entered Extension 8445 | -4/Extension | Rescued a captive Derelict 8466 | -4/Extension | Energy Cycler disabled 8466 | -4/Extension | Rescued a captive Derelict 8466 | -4/Extension | Rescued a captive Derelict 8466 | -4/Extension | Rescued a captive Derelict 8466 | -4/Extension | Rescued a captive Derelict 8467 | -4/Extension | Rescued a captive Derelict 8467 | -4/Extension | Rescued a captive Derelict 8468 | -4/Extension | Rescued a captive Derelict 8468 | -4/Extension | Rescued a captive Derelict 8470 | -4/Extension | Rescued a captive Derelict 8470 | -4/Extension | Rescued a captive Derelict 8471 | -4/Extension | Rescued a captive Derelict 8474 | -4/Extension | Rescued a captive Derelict 8475 | -4/Extension | Rescued a captive Derelict 8478 | -4/Extension | Rescued a captive Derelict 8670 | -4/Extension | Identified exit to Cetus 9046 | -4/Extension | Extracted ID and sensor layout for unrecognized location from A7's data core 9054 | -4/Extension | Spotted B-86 Titan 9064 | -4/Extension | Destroyed B-86 Titan 9070 | -4/Extension | Discovered new exit (range 15) 9109 | -4/Extension | First assault squad dispatched 9109 | -4/Extension | Disrupted transfer network 9111 | -4/Extension | Found Hvy. Reflective Plating 9148 | -4/Extension | Entered Research 9148 | -3/Research | Evolved 2 slots: Propulsion x1, Utility x1 9985 | -3/Research | Cargo convoy interrupted 10148 | -3/Research | First assault squad dispatched 10205 | -3/Research | Destroyed 8 combat bots 10232 | -3/Research | Released all parts (14) 10285 | -3/Research | Lost 13 parts (2p6n1u4w) 10318 | -3/Research | Core integrity fell below 50% 10376 | -3/Research | Discovered new exit (range 6) 10381 | -3/Research | Entered Testing 10382 | -3/Testing | Maximum security lockdown engaged 10407 | -3/Testing | Found Fusion Bomb Launcher 10445 | -3/Testing | Found Prototype Device 10445 | -3/Testing | Identified Exp. Thermal Shield 10491 | -3/Testing | Core integrity fell below 20% 10522 | -3/Testing | Spotted Striker 10522 | -3/Testing | Spotted Striker 10525 | -3/Testing | Spotted Alpha 7 10530 | -3/Testing | Stole the SGEMP Prototype 10531 | -3/Testing | Destroyed by Striker with Compact Linear Accelerator Last Messages --------------- 10504_ L-61 Swordsman unfolds itself. 10504_ B-74 Champion unfolds itself. 10504_ G-67 Veteran unfolds itself. 10504_ I-47 Archangel unfolds itself. 10504_ C-30 ARC bursts open, deploying its payload. 10504_ P-80 Master unfolds itself. 10504_ M-36 Artificer unfolds itself. 10504_ Linear Gravjet destroyed. 10506_ P-80 Master resets G-67 Veteran, system corruption cleaned. 10525_ Knocked back. 10526_ Acquired 2 matter. 10526_ Penetrated by Slug. 10527_ Machine disabled. 10529_ Dropped Antimissile System. 10530_ Acquired SGEMP Prototype. 10531_ Penetrated by Slug. 10531_ Broken Antigrav Array destroyed. 10531_ Fusion Bomb intercepted. Map ----- +----------------------------------------------------+ | ????????????????????#"" # # | | ????????????????????#"" """ # # | | ????????????????????#"" """ + # | | ????????????????????#T """ # + | | ????????????????????#"" """ # # | | ????????????????????#"" """ # + | | ????????????????????#"" # # | | ????????????????????# ! # # | | ??????????????????############ ### | | ????????????#######T######### #? | | ????????????# "T #? | | ????????????# p pp "" ## | | ????????????# ############## | | ????????????# #????????????####### | | ????????????#% #??????????????????? | | ????????????# #??????????????????? | | ????????????# #??????????????????? | | ????????????# #??????????????????? | | ???????????## ##?????????????????? | | ???????????# #?????????????????? | | ???????????## #"#????????????????? | | ????????#####++####???????????????? | | ????????#""" #???????????????? | | ????????#"""KK7 #???????????????? | | ????????#"" ##???????????????? | | ????????#"@! "#????????????????? | | ????????#"% "" "#????????????????? | | ????????#"""""" "#????????????????? | | ????????##########????????????????? | | ??????????????????????????????????? | | ??????????????????????????????????? | | ??????????????????????????????????? | | ??????????????????????????????????? | | ??????????????????????????????????? | | ??????????????????????????????????? | | ??????????????????????????????????? | | ??????????????????????????????????? | | ??????????????????????????????????? | | ??????????????????????????????????? | | | | | | | | | | | | | | | | | | | | | | | +----------------------------------------------------+ Best States ------------- Heat Dissipation 77 Energy Generation 41 Energy Capacity 1020 Matter Stores 312 Matter Capacity 500 Sight Range 16 Robot Scan Range 20 Terrain Scan Range 16 Terrain Scan Density 10 EM Shielding 4 Armor Coverage 600 Resistance: TH 25 Phase Shifting 10 Evasion (%) 68 Targeting Accuracy 6 Target Analysis 8 Core Analysis 6 Armor Integrity Analysis 30 Recoil Reduction 4 Kinecelleration 40 Salvage Targeting 2 Offensive Hacking 20 Item Schematics ----------------- None Robot Schematics ------------------ None Fabricated ------------ Adv. Focal Shield | x2 | -4/Factory | Preloaded Alien Tech Used ----------------- None Achievements -------------- Gun Specialist Challenges ------------ None Game ------ Seed FluxIonicDisintegrator Manual? 0 Play Time 02:25:22 Cumulative 25.4 hours Start 2024.09.30 @ 21:46:52 End 2024.10.01 @ 12:31:33 Sessions 9 Manual Loads 0 Difficulty Rogue Special Mode None Game No. 26 Rogue 24 Adventurer 2 Explorer 0 Win Type - Total 0 Types 0/0/0/0/0/0/0/0/0 Lore% 13 Gallery% 31 Achievement% 28 Wizard Run 0 Options --------- Layout 1 ASCII 0 Keyboard 0 Movement Numpad Keybinds 1 Fullscreen 2 Font 24/Smallcaps Map View 50x35 Zoom Use 0% Tactical HUD 1 Map Filters NONE Filters NONE Steam 1 RUN: ce1f8fc1-4309-4fbe-9f0f-94c36abcdbd0